[Event "Titled Tuesday Blitz May 16 Early 2023"]
[White "Spata, German"]
[Black "Hambleton, Aman"]
[WhiteFideId "113026"]
[BlackFideId "2606577"]
[WhiteElo "2260"]
[BlackElo "2511"]
[Result "0-1"]
[Round "08"]
[TimeControl "180+2"]
[Date "2023.05.16"]
[WhiteClock "0:00:00"]
[BlackClock "0:00:02"]

1. Nf3 {[%clk 0:02:58]}  b6 {[%clk 0:02:59]} 2. e3 {[%clk 0:02:58]}  Bb7 {[%clk 0:03:00]} 3. d4 {[%clk 0:02:58]}  e6 {[%clk 0:03:00]} 4. Be2 {[%clk 0:02:58]}  c5 {[%clk 0:03:00]} 5. O-O {[%clk 0:02:57]}  Nf6 {[%clk 0:03:00]} 6. b3 {[%clk 0:02:58]}  cxd4 {[%clk 0:03:00]} 7. Nxd4 {[%clk 0:02:58]}  a6 {[%clk 0:02:59]} 8. Bb2 {[%clk 0:02:58]}  d6 {[%clk 0:02:59]} 9. c4 {[%clk 0:02:58]}  Nbd7 {[%clk 0:02:59]} 10. Nc3 {[%clk 0:02:59]}  Be7 {[%clk 0:02:59]} 11. Rc1 {[%clk 0:02:59]}  O-O {[%clk 0:03:00]} 12. Bf3 {[%clk 0:02:59]}  Qc7 {[%clk 0:03:00]} 13. h3 {[%clk 0:02:55]}  Rac8 {[%clk 0:03:00]} 14. Bxb7 {[%clk 0:02:53]}  Qxb7 {[%clk 0:03:01]} 15. Qf3 {[%clk 0:02:53]}  Qc7 {[%clk 0:03:01]} 16. Rfd1 {[%clk 0:02:50]}  Rfe8 {[%clk 0:03:02]} 17. Qe2 {[%clk 0:02:48]}  h6 {[%clk 0:03:01]} 18. Nf3 {[%clk 0:02:42]}  Qb7 {[%clk 0:03:01]} 19. Nd4 {[%clk 0:02:41]}  Bf8 {[%clk 0:02:58]} 20. Qf3 {[%clk 0:02:40]}  Qc7 {[%clk 0:02:59]} 21. Qe2 {[%clk 0:02:41]}  Ne5 {[%clk 0:02:55]} 22. Nf3 {[%clk 0:02:40]}  Ned7 {[%clk 0:02:49]} 23. Qc2 {[%clk 0:02:37]}  Red8 {[%clk 0:02:42]} 24. Ne4 {[%clk 0:02:36]}  Be7 {[%clk 0:02:35]} 25. Nxf6+ {[%clk 0:02:35]}  Nxf6 {[%clk 0:02:36]} 26. Nd2 {[%clk 0:02:35]}  Qb7 {[%clk 0:02:28]} 27. Bxf6 {[%clk 0:02:22]}  Bxf6 {[%clk 0:02:29]} 28. Qe4 {[%clk 0:02:22]}  Qxe4 {[%clk 0:01:44]} 29. Nxe4 {[%clk 0:02:22]}  Be7 {[%clk 0:01:45]} 30. Kf1 {[%clk 0:02:21]}  f5 {[%clk 0:01:45]} 31. Nc3 {[%clk 0:02:21]}  Kf7 {[%clk 0:01:46]} 32. Ke2 {[%clk 0:02:21]}  Rc5 {[%clk 0:01:44]} 33. Na4 {[%clk 0:02:20]}  Rc6 {[%clk 0:01:44]} 34. Rc2 {[%clk 0:02:14]}  b5 {[%clk 0:01:37]} 35. Nb2 {[%clk 0:02:13]}  Bf6 {[%clk 0:00:25]} 36. Rdc1 {[%clk 0:01:56]}  Rdc8 {[%clk 0:00:15]} 37. Kd3 {[%clk 0:01:55]}  Bxb2 {[%clk 0:00:05]} 38. Rxb2 {[%clk 0:01:56]}  d5 {[%clk 0:00:03]} 39. Rbc2 {[%clk 0:01:54]}  dxc4+ {[%clk 0:00:03]} 40. bxc4 {[%clk 0:01:55]}  b4 {[%clk 0:00:01]} 41. Rb1 {[%clk 0:01:44]}  a5 {[%clk 0:00:01]} 42. a3 {[%clk 0:01:40]}  Rb8 {[%clk 0:00:01]} 43. axb4 {[%clk 0:01:40]}  axb4 {[%clk 0:00:02]} 44. c5 {[%clk 0:01:33]}  Rb5 {[%clk 0:00:02]} 45. Kd4 {[%clk 0:01:30]}  Kf6 {[%clk 0:00:02]} 46. Rb3 {[%clk 0:01:26]}  g5 {[%clk 0:00:02]} 47. Rc4 {[%clk 0:01:26]}  h5 {[%clk 0:00:02]} 48. Rbxb4 {[%clk 0:01:25]}  Rcxc5 {[%clk 0:00:01]} 49. Rxb5 {[%clk 0:01:17]}  Rxb5 {[%clk 0:00:01]} 50. Rc2 {[%clk 0:01:17]}  Rb1 {[%clk 0:00:02]} 51. Kd3 {[%clk 0:01:12]}  Rg1 {[%clk 0:00:02]} 52. f3 {[%clk 0:01:13]}  Re1 {[%clk 0:00:01]} 53. Re2 {[%clk 0:01:12]}  Rg1 {[%clk 0:00:02]} 54. e4 {[%clk 0:01:11]}  f4 {[%clk 0:00:02]} 55. Kd4 {[%clk 0:01:09]}  Rd1+ {[%clk 0:00:02]} 56. Kc3 {[%clk 0:01:09]}  Ke5 {[%clk 0:00:03]} 57. Kc4 {[%clk 0:01:05]}  Rg1 {[%clk 0:00:02]} 58. Kd3 {[%clk 0:01:05]}  Rf1 {[%clk 0:00:02]} 59. Rc2 {[%clk 0:01:03]}  Re1 {[%clk 0:00:02]} 60. Rc5+ {[%clk 0:01:02]}  Kf6 {[%clk 0:00:02]} 61. Rc2 {[%clk 0:01:01]}  Rd1+ {[%clk 0:00:02]} 62. Ke2 {[%clk 0:01:00]}  Rg1 {[%clk 0:00:03]} 63. Kf2 {[%clk 0:01:01]}  Rd1 {[%clk 0:00:03]} 64. Re2 {[%clk 0:01:00]}  Ke5 {[%clk 0:00:03]} 65. Ra2 {[%clk 0:01:00]}  Rb1 {[%clk 0:00:02]} 66. Ra5+ {[%clk 0:01:00]}  Kf6 {[%clk 0:00:03]} 67. Ra2 {[%clk 0:01:00]}  Rb5 {[%clk 0:00:02]} 68. Rc2 {[%clk 0:01:00]}  Ke5 {[%clk 0:00:03]} 69. Ra2 {[%clk 0:00:59]}  Rc5 {[%clk 0:00:03]} 70. Rb2 {[%clk 0:00:59]}  Kd4 {[%clk 0:00:03]} 71. Rd2+ {[%clk 0:00:59]}  Ke5 {[%clk 0:00:03]} 72. Rb2 {[%clk 0:00:59]}  Ra5 {[%clk 0:00:03]} 73. Rc2 {[%clk 0:00:59]}  g4 {[%clk 0:00:03]} 74. hxg4 {[%clk 0:00:53]}  hxg4 {[%clk 0:00:03]} 75. g3 {[%clk 0:00:52]}  fxg3+ {[%clk 0:00:02]} 76. Kxg3 {[%clk 0:00:52]}  gxf3 {[%clk 0:00:03]} 77. Kxf3 {[%clk 0:00:52]}  Ra3+ {[%clk 0:00:04]} 78. Kf2 {[%clk 0:00:50]}  Kxe4 {[%clk 0:00:04]} 79. Rc4+ {[%clk 0:00:49]}  Kf5 {[%clk 0:00:04]} 80. Rb4 {[%clk 0:00:49]}  e5 {[%clk 0:00:04]} 81. Ke2 {[%clk 0:00:49]}  Ra2+ {[%clk 0:00:04]} 82. Kf3 {[%clk 0:00:48]}  Ra3+ {[%clk 0:00:04]} 83. Ke2 {[%clk 0:00:48]}  Rh3 {[%clk 0:00:05]} 84. Kf2 {[%clk 0:00:48]}  Rh2+ {[%clk 0:00:05]} 85. Kg3 {[%clk 0:00:46]}  Rc2 {[%clk 0:00:04]} 86. Kf3 {[%clk 0:00:46]}  Rc3+ {[%clk 0:00:04]} 87. Ke2 {[%clk 0:00:46]}  Ke6 {[%clk 0:00:04]} 88. Ra4 {[%clk 0:00:46]}  Rh3 {[%clk 0:00:04]} 89. Kf2 {[%clk 0:00:46]}  Rb3 {[%clk 0:00:04]} 90. Ke2 {[%clk 0:00:46]}  Kd5 {[%clk 0:00:04]} 91. Kd2 {[%clk 0:00:45]}  Rh3 {[%clk 0:00:03]} 92. Ke2 {[%clk 0:00:46]}  e4 {[%clk 0:00:01]} 93. Kd2 {[%clk 0:00:43]}  Rh2+ {[%clk 0:00:01]} 94. Ke3 {[%clk 0:00:39]}  Rh3+ {[%clk 0:00:02]} 95. Ke2 {[%clk 0:00:39]}  Ke5 {[%clk 0:00:02]} 96. Kf2 {[%clk 0:00:30]}  Rh2+ {[%clk 0:00:02]} 97. Ke3 {[%clk 0:00:29]}  Rh3+ {[%clk 0:00:03]} 98. Kf2 {[%clk 0:00:29]}  Kf4 {[%clk 0:00:03]} 99. Kg2 {[%clk 0:00:25]}  Rg3+ {[%clk 0:00:04]} 100. Kf2 {[%clk 0:00:26]}  Rh3 {[%clk 0:00:03]} 101. Kg2 {[%clk 0:00:26]}  Rc3 {[%clk 0:00:02]} 102. Ra2 {[%clk 0:00:19]}  Ke3 {[%clk 0:00:02]} 103. Kg3 {[%clk 0:00:17]}  Rb3 {[%clk 0:00:02]} 104. Kg2 {[%clk 0:00:16]}  Rb1 {[%clk 0:00:02]} 105. Rf2 {[%clk 0:00:03]}  Rd1 {[%clk 0:00:01]} 106. Ra2 {[%clk 0:00:00]}  Rd2+ {[%clk 0:00:02]} 0-1


[Site "https://www.chess.com"]

[Event "Titled Tuesday Blitz May 16 Early 2023"]
[White "Piesik, Piotr"]
[Black "Harsh Suresh"]
[WhiteFideId "1136194"]
[BlackFideId "45018464"]
[WhiteElo "2299"]
[BlackElo "2209"]
[Result "0-1"]
[Round "08"]
[TimeControl "180+2"]
[Date "2023.05.16"]
[WhiteClock "0:01:06"]
[BlackClock "0:00:08"]

1. Nf3 {[%clk 0:02:56]}  Nf6 {[%clk 0:02:58]} 2. g3 {[%clk 0:02:56]}  g6 {[%clk 0:02:58]} 3. Bg2 {[%clk 0:02:56]}  Bg7 {[%clk 0:02:58]} 4. O-O {[%clk 0:02:57]}  O-O {[%clk 0:02:59]} 5. d4 {[%clk 0:02:58]}  d5 {[%clk 0:02:58]} 6. c4 {[%clk 0:02:57]}  c6 {[%clk 0:02:58]} 7. Nc3 {[%clk 0:02:57]}  Bg4 {[%clk 0:02:57]} 8. Ne5 {[%clk 0:02:56]}  Be6 {[%clk 0:02:56]} 9. cxd5 {[%clk 0:02:56]}  cxd5 {[%clk 0:02:56]} 10. Qb3 {[%clk 0:02:55]}  Nc6 {[%clk 0:02:48]} 11. Qxb7 {[%clk 0:02:47]}  Nxd4 {[%clk 0:02:36]} 12. Be3 {[%clk 0:02:42]}  Nf5 {[%clk 0:02:34]} 13. Nc6 {[%clk 0:02:41]}  Qd7 {[%clk 0:02:28]} 14. Qxd7 {[%clk 0:02:32]}  Bxd7 {[%clk 0:02:29]} 15. Nxd5 {[%clk 0:02:27]}  Nxd5 {[%clk 0:02:12]} 16. Bxd5 {[%clk 0:02:28]}  Nxe3 {[%clk 0:02:11]} 17. Nxe7+ {[%clk 0:02:16]}  Kh8 {[%clk 0:02:09]} 18. Bxa8 {[%clk 0:02:14]}  Nxf1 {[%clk 0:02:09]} 19. Bc6 {[%clk 0:02:07]}  Bxc6 {[%clk 0:01:58]} 20. Nxc6 {[%clk 0:02:06]}  Nd2 {[%clk 0:01:59]} 21. Rd1 {[%clk 0:02:02]}  Ne4 {[%clk 0:01:59]} 22. Nxa7 {[%clk 0:02:01]}  Bxb2 {[%clk 0:01:59]} 23. Nc6 {[%clk 0:01:58]}  Rc8 {[%clk 0:01:49]} 24. Rd8+ {[%clk 0:01:56]}  Rxd8 {[%clk 0:01:49]} 25. Nxd8 {[%clk 0:01:57]}  Kg7 {[%clk 0:01:50]} 26. a4 {[%clk 0:01:54]}  Nc5 {[%clk 0:01:30]} 27. a5 {[%clk 0:01:52]}  Bc3 {[%clk 0:01:28]} 28. Nc6 {[%clk 0:01:52]}  Kf6 {[%clk 0:01:28]} 29. Kg2 {[%clk 0:01:43]}  Ke6 {[%clk 0:01:27]} 30. Nd8+ {[%clk 0:01:37]}  Ke7 {[%clk 0:01:26]} 31. Nb7 {[%clk 0:01:36]}  Na6 {[%clk 0:01:16]} 32. Kf3 {[%clk 0:01:36]}  Kd7 {[%clk 0:01:16]} 33. Ke4 {[%clk 0:01:36]}  Kc7 {[%clk 0:01:15]} 34. Kd5 {[%clk 0:01:33]}  Kxb7 {[%clk 0:01:03]} 35. Kd6 {[%clk 0:01:33]}  Bb4+ {[%clk 0:00:56]} 36. Kd7 {[%clk 0:01:33]}  Nc7 {[%clk 0:00:44]} 37. e4 {[%clk 0:01:25]}  Bxa5 {[%clk 0:00:38]} 38. Ke7 {[%clk 0:01:24]}  f5 {[%clk 0:00:39]} 39. exf5 {[%clk 0:01:24]}  gxf5 {[%clk 0:00:39]} 40. Kf6 {[%clk 0:01:24]}  Bb6 {[%clk 0:00:38]} 41. f3 {[%clk 0:01:21]}  Bg1 {[%clk 0:00:38]} 42. h3 {[%clk 0:01:18]}  Bf2 {[%clk 0:00:38]} 43. g4 {[%clk 0:01:17]}  fxg4 {[%clk 0:00:39]} 44. fxg4 {[%clk 0:01:16]}  Kc6 {[%clk 0:00:37]} 45. Kg7 {[%clk 0:01:16]}  Kd6 {[%clk 0:00:35]} 46. Kxh7 {[%clk 0:01:16]}  Ke7 {[%clk 0:00:35]} 47. Kg6 {[%clk 0:01:16]}  Ne6 {[%clk 0:00:34]} 48. Kf5 {[%clk 0:01:13]}  Bh4 {[%clk 0:00:33]} 49. Kg6 {[%clk 0:01:13]}  Nf4+ {[%clk 0:00:33]} 50. Kf5 {[%clk 0:01:13]}  Nxh3 {[%clk 0:00:28]} 51. g5 {[%clk 0:01:13]}  Be1 {[%clk 0:00:21]} 52. g6 {[%clk 0:01:12]}  Nf2 {[%clk 0:00:18]} 53. Kg5 {[%clk 0:01:11]}  Kf8 {[%clk 0:00:18]} 54. Kh6 {[%clk 0:01:09]}  Kg8 {[%clk 0:00:18]} 55. Kg5 {[%clk 0:01:09]}  Kg7 {[%clk 0:00:18]} 56. Kf5 {[%clk 0:01:09]}  Bc3 {[%clk 0:00:18]} 57. Kg5 {[%clk 0:01:09]}  Bd2+ {[%clk 0:00:18]} 58. Kf5 {[%clk 0:01:09]}  Bc1 {[%clk 0:00:18]} 59. Ke5 {[%clk 0:01:08]}  Kxg6 {[%clk 0:00:19]} 60. Ke6 {[%clk 0:01:08]}  Bf4 {[%clk 0:00:18]} 61. Kd5 {[%clk 0:01:08]}  Kf5 {[%clk 0:00:18]} 62. Kd4 {[%clk 0:01:08]}  Ke6 {[%clk 0:00:18]} 63. Kc5 {[%clk 0:01:08]}  Ke5 {[%clk 0:00:18]} 64. Kc6 {[%clk 0:01:08]}  Kd4 {[%clk 0:00:17]} 65. Kb5 {[%clk 0:01:08]}  Kd5 {[%clk 0:00:17]} 66. Kb6 {[%clk 0:01:08]}  Bd6 {[%clk 0:00:16]} 67. Kb7 {[%clk 0:01:08]}  Ne4 {[%clk 0:00:15]} 68. Kb6 {[%clk 0:01:08]}  Nc3 {[%clk 0:00:15]} 69. Kb7 {[%clk 0:01:08]}  Kc5 {[%clk 0:00:14]} 70. Ka8 {[%clk 0:01:07]}  Kc6 {[%clk 0:00:14]} 71. Ka7 {[%clk 0:01:07]}  Nb5+ {[%clk 0:00:14]} 72. Ka8 {[%clk 0:01:07]}  Bc5 {[%clk 0:00:14]} 73. Kb8 {[%clk 0:01:07]}  Nc7 {[%clk 0:00:14]} 74. Kc8 {[%clk 0:01:08]}  Ba7 {[%clk 0:00:15]} 75. Kd8 {[%clk 0:01:08]}  Nd5 {[%clk 0:00:14]} 76. Ke8 {[%clk 0:01:08]}  Kd6 {[%clk 0:00:14]} 77. Kf7 {[%clk 0:01:09]}  Ne7 {[%clk 0:00:15]} 78. Kf6 {[%clk 0:01:09]}  Be3 {[%clk 0:00:15]} 79. Kf7 {[%clk 0:01:09]}  Bg5 {[%clk 0:00:14]} 80. Ke8 {[%clk 0:01:08]}  Ng6 {[%clk 0:00:14]} 81. Kf7 {[%clk 0:01:08]}  Ne5+ {[%clk 0:00:14]} 82. Ke8 {[%clk 0:01:08]}  Ke6 {[%clk 0:00:15]} 83. Kf8 {[%clk 0:01:08]}  Kd7 {[%clk 0:00:15]} 84. Kg7 {[%clk 0:01:08]}  Ke7 {[%clk 0:00:15]} 85. Kg8 {[%clk 0:01:09]}  Bh6 {[%clk 0:00:10]} 86. Kh7 {[%clk 0:01:08]}  Bf8 {[%clk 0:00:10]} 87. Kg8 {[%clk 0:01:09]}  Ke8 {[%clk 0:00:07]} 88. Kh7 {[%clk 0:01:09]}  Kf7 {[%clk 0:00:07]} 89. Kh8 {[%clk 0:01:09]}  Nd7 {[%clk 0:00:07]} 90. Kh7 {[%clk 0:01:06]}  Nf6+ {[%clk 0:00:08]} 0-1


[Site "https://www.chess.com"]

[Event "Titled Tuesday Blitz May 16 Early 2023"]
[White "Asavasaetakul, Chawit"]
[Black "Bryakin, Mikhail"]
[WhiteFideId "6204856"]
[BlackFideId "4165314"]
[WhiteElo "1919"]
[BlackElo "2467"]
[Result "1-0"]
[Round "08"]
[TimeControl "180+2"]
[Date "2023.05.16"]
[WhiteClock "0:02:14"]
[BlackClock "0:02:36"]

1. e4 {[%clk 0:03:00]}  d6 {[%clk 0:02:59]} 2. d4 {[%clk 0:02:59]}  e5 {[%clk 0:03:00]} 3. Nf3 {[%clk 0:02:58]}  exd4 {[%clk 0:03:00]} 4. Nxd4 {[%clk 0:02:58]}  Nf6 {[%clk 0:03:01]} 5. Nc3 {[%clk 0:02:59]}  Be7 {[%clk 0:03:01]} 6. Bc4 {[%clk 0:03:00]}  O-O {[%clk 0:03:02]} 7. O-O {[%clk 0:03:00]}  Nc6 {[%clk 0:03:03]} 8. Nxc6 {[%clk 0:02:59]}  bxc6 {[%clk 0:03:03]} 9. Re1 {[%clk 0:02:59]}  Be6 {[%clk 0:03:04]} 10. Bxe6 {[%clk 0:02:51]}  fxe6 {[%clk 0:03:04]} 11. e5 {[%clk 0:02:52]}  Nd5 {[%clk 0:03:04]} 12. exd6 {[%clk 0:02:49]}  Bxd6 {[%clk 0:03:02]} 13. Ne4 {[%clk 0:02:46]}  Qh4 {[%clk 0:03:01]} 14. g3 {[%clk 0:02:42]}  Qh3 {[%clk 0:02:57]} 15. c4 {[%clk 0:02:40]}  Rxf2 {[%clk 0:02:52]} 16. Nxf2 {[%clk 0:02:38]}  Bc5 {[%clk 0:02:52]} 17. cxd5 {[%clk 0:02:23]}  Bxf2+ {[%clk 0:02:47]} 18. Kxf2 {[%clk 0:02:24]}  Qxh2+ {[%clk 0:02:48]} 19. Kf3 {[%clk 0:02:25]}  Qh5+ {[%clk 0:02:42]} 20. Kg2 {[%clk 0:02:23]}  Qg6 {[%clk 0:02:38]} 21. Rxe6 {[%clk 0:02:19]}  Qf5 {[%clk 0:02:36]} 22. Bf4 {[%clk 0:02:14]} 1-0


[Site "https://www.chess.com"]

[Event "Titled Tuesday Blitz May 16 Early 2023"]
[White "Starozhilov, Leonid"]
[Black "Sieciechowicz, Marcin"]
[WhiteFideId "14106752"]
[BlackFideId "1130170"]
[WhiteElo "2352"]
[BlackElo "2302"]
[Result "0-1"]
[Round "08"]
[TimeControl "180+2"]
[Date "2023.05.16"]
[WhiteClock "0:00:00"]
[BlackClock "0:00:13"]

1. e4 {[%clk 0:02:48]}  e6 {[%clk 0:02:59]} 2. d4 {[%clk 0:02:45]}  d5 {[%clk 0:03:00]} 3. Nc3 {[%clk 0:02:46]}  Bb4 {[%clk 0:02:59]} 4. e5 {[%clk 0:02:46]}  c5 {[%clk 0:03:00]} 5. a3 {[%clk 0:02:46]}  Bxc3+ {[%clk 0:03:00]} 6. bxc3 {[%clk 0:02:47]}  Qa5 {[%clk 0:03:01]} 7. h4 {[%clk 0:02:43]}  Qxc3+ {[%clk 0:02:59]} 8. Bd2 {[%clk 0:02:43]}  Qxd4 {[%clk 0:03:00]} 9. Nf3 {[%clk 0:02:44]}  Qe4+ {[%clk 0:02:59]} 10. Be2 {[%clk 0:02:44]}  Nc6 {[%clk 0:02:59]} 11. Kf1 {[%clk 0:02:18]}  Nxe5 {[%clk 0:02:59]} 12. Ng5 {[%clk 0:01:46]}  Qa4 {[%clk 0:02:57]} 13. Rb1 {[%clk 0:01:35]}  Nc4 {[%clk 0:02:57]} 14. Bd3 {[%clk 0:01:21]}  Nf6 {[%clk 0:02:55]} 15. Bc3 {[%clk 0:01:12]}  h6 {[%clk 0:02:42]} 16. Nf3 {[%clk 0:00:54]}  a6 {[%clk 0:02:22]} 17. Ne5 {[%clk 0:00:41]}  Nxe5 {[%clk 0:02:13]} 18. Bxe5 {[%clk 0:00:41]}  Qc6 {[%clk 0:01:52]} 19. Qf3 {[%clk 0:00:38]}  Ke7 {[%clk 0:01:46]} 20. g4 {[%clk 0:00:33]}  d4 {[%clk 0:01:41]} 21. Qxc6 {[%clk 0:00:17]}  bxc6 {[%clk 0:01:41]} 22. f3 {[%clk 0:00:11]}  Ra7 {[%clk 0:01:27]} 23. Ke2 {[%clk 0:00:05]}  Nd5 {[%clk 0:01:19]} 24. Bxg7 {[%clk 0:00:06]}  Rg8 {[%clk 0:01:19]} 25. Bxh6 {[%clk 0:00:06]}  Nc3+ {[%clk 0:01:19]} 26. Kd2 {[%clk 0:00:05]}  Nxb1+ {[%clk 0:01:19]} 27. Rxb1 {[%clk 0:00:06]}  f6 {[%clk 0:01:01]} 28. Rh1 {[%clk 0:00:05]}  e5 {[%clk 0:00:58]} 29. g5 {[%clk 0:00:04]}  Be6 {[%clk 0:00:56]} 30. g6 {[%clk 0:00:03]}  c4 {[%clk 0:00:55]} 31. Be4 {[%clk 0:00:02]}  f5 {[%clk 0:00:55]} 32. Bxc6 {[%clk 0:00:02]}  Kd6 {[%clk 0:00:47]} 33. Ba4 {[%clk 0:00:02]}  Rxg6 {[%clk 0:00:47]} 34. Bg5 {[%clk 0:00:02]}  Bd5 {[%clk 0:00:43]} 35. Rf1 {[%clk 0:00:01]}  Bc6 {[%clk 0:00:37]} 36. Bxc6 {[%clk 0:00:01]}  Kxc6 {[%clk 0:00:37]} 37. Re1 {[%clk 0:00:01]}  Kd5 {[%clk 0:00:36]} 38. Rb1 {[%clk 0:00:02]}  Rag7 {[%clk 0:00:32]} 39. Rb8 {[%clk 0:00:02]}  Rxg5 {[%clk 0:00:31]} 40. hxg5 {[%clk 0:00:02]}  Rxg5 {[%clk 0:00:32]} 41. Rd8+ {[%clk 0:00:03]}  Ke6 {[%clk 0:00:29]} 42. Re8+ {[%clk 0:00:03]}  Kd6 {[%clk 0:00:26]} 43. Rd8+ {[%clk 0:00:04]}  Ke7 {[%clk 0:00:26]} 44. Rd5 {[%clk 0:00:04]}  Rg2+ {[%clk 0:00:26]} 45. Kd1 {[%clk 0:00:04]}  Ke6 {[%clk 0:00:25]} 46. Ra5 {[%clk 0:00:04]}  e4 {[%clk 0:00:25]} 47. f4 {[%clk 0:00:05]}  d3 {[%clk 0:00:24]} 48. cxd3 {[%clk 0:00:04]}  cxd3 {[%clk 0:00:25]} 49. Ke1 {[%clk 0:00:04]}  Kd6 {[%clk 0:00:18]} 50. Re5 {[%clk 0:00:03]}  a5 {[%clk 0:00:14]} 51. Rxa5 {[%clk 0:00:02]}  e3 {[%clk 0:00:14]} 52. Kf1 {[%clk 0:00:02]}  Ra2 {[%clk 0:00:13]} 53. Rxf5 {[%clk 0:00:01]}  Ra1+ {[%clk 0:00:13]} 54. Kg2 {[%clk 0:00:00]}  e2 {[%clk 0:00:13]} 0-1


[Site "https://www.chess.com"]

[Event "Titled Tuesday Blitz May 16 Early 2023"]
[White "Tasev, Dejan"]
[Black "Panesar Vedant"]
[WhiteFideId "936618"]
[BlackFideId "35033018"]
[WhiteElo "2244"]
[BlackElo "2347"]
[Result "1-0"]
[Round "08"]
[TimeControl "180+2"]
[Date "2023.05.16"]
[WhiteClock "0:00:20"]
[BlackClock "0:00:01"]

1. e4 {[%clk 0:03:00]}  e5 {[%clk 0:02:55]} 2. Nf3 {[%clk 0:03:00]}  Nc6 {[%clk 0:02:56]} 3. Bc4 {[%clk 0:03:00]}  Bc5 {[%clk 0:02:54]} 4. Nc3 {[%clk 0:02:59]}  Nf6 {[%clk 0:02:54]} 5. d3 {[%clk 0:02:59]}  a5 {[%clk 0:02:51]} 6. a3 {[%clk 0:02:58]}  h6 {[%clk 0:02:51]} 7. h3 {[%clk 0:02:58]}  d6 {[%clk 0:02:51]} 8. Be3 {[%clk 0:02:57]}  Bxe3 {[%clk 0:02:44]} 9. fxe3 {[%clk 0:02:57]}  O-O {[%clk 0:02:44]} 10. O-O {[%clk 0:02:57]}  Ne7 {[%clk 0:02:44]} 11. Nh4 {[%clk 0:02:52]}  d5 {[%clk 0:02:26]} 12. exd5 {[%clk 0:02:47]}  Nexd5 {[%clk 0:02:25]} 13. Qe1 {[%clk 0:02:38]}  Be6 {[%clk 0:02:16]} 14. Bxd5 {[%clk 0:02:02]}  Nxd5 {[%clk 0:02:15]} 15. Nf5 {[%clk 0:02:00]}  Nxc3 {[%clk 0:02:06]} 16. Qxc3 {[%clk 0:01:57]}  Bxf5 {[%clk 0:02:06]} 17. Rxf5 {[%clk 0:01:57]}  f6 {[%clk 0:02:06]} 18. Raf1 {[%clk 0:01:56]}  Qd7 {[%clk 0:02:00]} 19. R5f3 {[%clk 0:01:45]}  b6 {[%clk 0:01:57]} 20. Rg3 {[%clk 0:01:44]}  Kh8 {[%clk 0:01:55]} 21. Kh2 {[%clk 0:01:41]}  c5 {[%clk 0:01:55]} 22. Qc4 {[%clk 0:01:38]}  Rad8 {[%clk 0:01:52]} 23. Qh4 {[%clk 0:01:35]}  Qe6 {[%clk 0:01:43]} 24. b3 {[%clk 0:01:29]}  e4 {[%clk 0:01:29]} 25. dxe4 {[%clk 0:01:15]}  Rd2 {[%clk 0:01:25]} 26. Rf4 {[%clk 0:01:04]}  Kh7 {[%clk 0:00:20]} 27. Qh5 {[%clk 0:00:50]}  g5 {[%clk 0:00:12]} 28. Rh4 {[%clk 0:00:38]}  f5 {[%clk 0:00:08]} 29. Rxg5 {[%clk 0:00:31]}  Qd6+ {[%clk 0:00:07]} 30. e5 {[%clk 0:00:24]}  Qxe5+ {[%clk 0:00:06]} 31. Rg3 {[%clk 0:00:24]}  Rf6 {[%clk 0:00:05]} 32. Qg5 {[%clk 0:00:20]}  Rf8 {[%clk 0:00:02]} 33. Qg6+ {[%clk 0:00:20]}  Kh8 {[%clk 0:00:01]} 34. Rxh6# {[%clk 0:00:20]} 1-0


[Site "https://www.chess.com"]

[Event "Titled Tuesday Blitz May 16 Early 2023"]
[White "Cherniaiev, Tykhon"]
[Black "OPQRC"]
[WhiteFideId "14182360"]
[WhiteElo "2450"]
[BlackElo "2564"]
[Result "1-0"]
[Round "08"]
[TimeControl "180+2"]
[Date "2023.05.16"]
[WhiteClock "0:01:48"]
[BlackClock "0:02:03"]

1. Nf3 {[%clk 0:03:00]}  Nf6 {[%clk 0:02:59]} 2. d4 {[%clk 0:03:01]}  g6 {[%clk 0:02:59]} 3. c4 {[%clk 0:03:01]}  Bg7 {[%clk 0:03:00]} 4. Nc3 {[%clk 0:03:01]}  O-O {[%clk 0:03:00]} 5. e4 {[%clk 0:03:02]}  d6 {[%clk 0:03:01]} 6. Be2 {[%clk 0:03:03]}  e5 {[%clk 0:03:01]} 7. dxe5 {[%clk 0:03:03]}  dxe5 {[%clk 0:03:01]} 8. Qxd8 {[%clk 0:03:04]}  Rxd8 {[%clk 0:03:02]} 9. Bg5 {[%clk 0:03:05]}  Na6 {[%clk 0:02:57]} 10. Nd5 {[%clk 0:03:00]}  Rd6 {[%clk 0:02:57]} 11. Bxf6 {[%clk 0:02:01]}  Bxf6 {[%clk 0:02:58]} 12. O-O-O {[%clk 0:01:58]}  Kg7 {[%clk 0:02:51]} 13. c5 {[%clk 0:01:50]}  Nxc5 {[%clk 0:02:08]} 14. Nxc7 {[%clk 0:01:50]}  Rxd1+ {[%clk 0:02:08]} 15. Rxd1 {[%clk 0:01:49]}  Rb8 {[%clk 0:02:03]} 16. Ne8+ {[%clk 0:01:48]} 1-0


[Site "https://www.chess.com"]

[Event "Titled Tuesday Blitz May 16 Early 2023"]
[White "Jovic, Stanoje"]
[Black "wqws"]
[WhiteFideId "905020"]
[WhiteElo "2236"]
[BlackElo "2612"]
[Result "1-0"]
[Round "08"]
[TimeControl "180+2"]
[Date "2023.05.16"]
[WhiteClock "0:01:03"]
[BlackClock "0:01:00"]

1. c4 {[%clk 0:03:00]}  Nf6 {[%clk 0:02:59]} 2. g3 {[%clk 0:02:58]}  e6 {[%clk 0:02:51]} 3. Bg2 {[%clk 0:02:58]}  d5 {[%clk 0:02:50]} 4. Nf3 {[%clk 0:02:58]}  d4 {[%clk 0:02:49]} 5. O-O {[%clk 0:02:57]}  c5 {[%clk 0:02:48]} 6. e3 {[%clk 0:02:56]}  Nc6 {[%clk 0:02:48]} 7. Re1 {[%clk 0:02:52]}  Bd6 {[%clk 0:02:42]} 8. a3 {[%clk 0:02:49]}  a5 {[%clk 0:02:42]} 9. b3 {[%clk 0:02:47]}  O-O {[%clk 0:02:41]} 10. exd4 {[%clk 0:02:44]}  cxd4 {[%clk 0:02:41]} 11. d3 {[%clk 0:02:43]}  e5 {[%clk 0:02:41]} 12. Bg5 {[%clk 0:02:37]}  h6 {[%clk 0:02:41]} 13. Bxf6 {[%clk 0:02:37]}  Qxf6 {[%clk 0:02:42]} 14. Nbd2 {[%clk 0:02:37]}  Qg6 {[%clk 0:02:35]} 15. Qc2 {[%clk 0:02:27]}  f5 {[%clk 0:02:32]} 16. c5 {[%clk 0:02:23]}  Bc7 {[%clk 0:02:31]} 17. Nc4 {[%clk 0:02:22]}  Qf6 {[%clk 0:02:29]} 18. b4 {[%clk 0:02:16]}  axb4 {[%clk 0:02:25]} 19. axb4 {[%clk 0:02:16]}  Be6 {[%clk 0:02:21]} 20. b5 {[%clk 0:02:05]}  Nb4 {[%clk 0:02:15]} 21. Qb3 {[%clk 0:02:03]}  Rxa1 {[%clk 0:02:11]} 22. Rxa1 {[%clk 0:02:01]}  Nxd3 {[%clk 0:02:05]} 23. Qxd3 {[%clk 0:01:55]}  e4 {[%clk 0:02:05]} 24. Qxd4 {[%clk 0:01:41]}  exf3 {[%clk 0:02:03]} 25. Qxf6 {[%clk 0:01:40]}  gxf6 {[%clk 0:02:00]} 26. Bf1 {[%clk 0:01:39]}  f4 {[%clk 0:01:45]} 27. b6 {[%clk 0:01:28]}  Be5 {[%clk 0:01:42]} 28. Nxe5 {[%clk 0:01:23]}  fxe5 {[%clk 0:01:42]} 29. Re1 {[%clk 0:01:19]}  Rd8 {[%clk 0:01:08]} 30. Rxe5 {[%clk 0:01:17]}  Kf7 {[%clk 0:01:08]} 31. Re1 {[%clk 0:01:11]}  fxg3 {[%clk 0:01:05]} 32. hxg3 {[%clk 0:01:07]}  Rc8 {[%clk 0:01:00]} 33. Rxe6 {[%clk 0:01:03]} 1-0


[Site "https://www.chess.com"]